[Event "16th Spilimbergo Open 2018"]
[Site "Spilimbergo"]
[Date "2018.08.11"]
[Round "3.11"]
[White "Korpa, Bence"]
[Black "Santagati, Alessandro"]
[Result "1-0"]
[ECO "C00"]
[WhiteElo "2506"]
[BlackElo "2312"]
[Annotator "ChessBase"]
[PlyCount "53"]
[EventDate "2018.08.10"]
[EventType "swiss"]
[EventCountry "ITA"]
[SourceTitle "playchess.com"]
[Source "ChessBase"]
[SourceQuality "1"]
[TimeControl "5400+30"]

1. Nf3 {[%emt 0:00:30]} d5 {[%emt 0:00:30]} 2. g3 {[%emt 0:00:00]} Nf6 {[%emt 0:00:00]} 3. Bg2 {[%emt 0:00:00]} e6 {[%emt 0:00:00]} 4. O-O {[%emt 0:00:30]} Be7 {[%emt 0:00:00]} 5. d3 {[%emt 0:00:30]} O-O {[%emt 0:01:00]} 6. Nbd2 {[%emt 0:00:00]} c5 {[%emt 0:03:30]} 7. e4 {[%emt 0:01:00]} Nc6 {[%emt 0:00:30]} 8. Re1 {[%emt 0:00:00]} b5 {[%emt 0:03:30]} 9. e5 {[%emt 0:00:00]} Nd7 {[%emt 0:00:30]} 10. Nf1 {[%emt 0:00:30]} Nb6 {[%emt 0:03:30]} 11. h4 {[%emt 0:00:30]} f5 {[%emt 0:07:30]} 12. exf6 {[%emt 0:00:30]} Bxf6 {[%emt 0:00:30]} 13. Ne3 {[%emt 0:13:30]} e5 {[%emt 0:07:30]} 14. c4 {[%emt 0:03:30]} bxc4 {[%emt 0:01:30]} 15. dxc4 {[%emt 0:00:00]} d4 {[%emt 0:00:30]} 16. Nd5 {[%emt 0:01:00]} Nxc4 {[%emt 0:04:30]} 17. Ng5 {[%emt 0:00:30]} Bf5 {[%emt 0:03:30]} 18. Nxf6+ {[%emt 0:08:30]} Rxf6 {[%emt 0:00:30]} 19. g4 {[%emt 0:00:30]} Bg6 {[%emt 0:12:30]} 20. h5 {[%emt 0:00:00]} Bf7 {[%emt 0:01:30]} 21. Qd3 {[%emt 0:00:00]} e4 {[%emt 0:01:30]} 22. Qxe4 {[%emt 0:00:30]} N4e5 {[%emt 0:03:30]} 23. Qxh7+ {[%emt 0:09:30]} Kf8 {[%emt 0:00:30]} 24. Nxf7 {[%emt 0:00:30]} Nxf7 {[%emt 0:01:30]} 25. g5 {[%emt 0:00:30]} Qa5 {[%emt 0:04:30]} 26. b4 {[%emt 0:02:30]} Qxb4 {[%emt 0:01:30]} 27. Ba3 {[%emt 0:00:30]} 1-0

[Event "16th Spilimbergo Open 2018"]
[Site "Spilimbergo"]
[Date "2018.08.11"]
[Round "3.13"]
[White "Lodici, Lorenzo"]
[Black "Dappiano, Andrea"]
[Result "1-0"]
[ECO "A40"]
[WhiteElo "2447"]
[BlackElo "2285"]
[Annotator "NA"]
[PlyCount "105"]
[EventDate "2018.08.10"]
[EventType "swiss"]
[EventCountry "ITA"]
[SourceTitle "playchess.com"]
[Source "ChessBase"]
[SourceQuality "1"]
[TimeControl "5400+30"]

1. d4 {[%emt 0:00:30]} e6 {[%emt 0:00:30]} 2. c4 {[%emt 0:00:00]} Bb4+ {[%emt 0:00:00]} 3. Nd2 {[%emt 0:00:00]} Nf6 {[%emt 0:00:00]} 4. a3 {[%emt 0:00:00]} Be7 {[%emt 0:01:30]} 5. e4 {[%emt 0:00:00]} d5 {[%emt 0:00:00]} 6. e5 {[%emt 0:00:00]} Nfd7 {[%emt 0:00:00]} 7. Qg4 {[%emt 0:00:00]} O-O {[%emt 0:03:30]} 8. Ndf3 {[%emt 0:06:30]} f5 {[%emt 0:10:30]} 9. Qg3 {[%emt 0:00:00]} dxc4 {[%emt 0:18:30]} 10. Bxc4 {[%emt 0:00:00]} Nb6 {[%emt 0:00:30]} 11. Ba2 {[%emt 0:00:30]} Na6 {[%emt 0:18:30]} 12. Ne2 {[%emt 0:04:30]} Nd5 {[%emt 0:04:30]} 13. Bh6 {[%emt 0:06:30]} Rf7 {[%emt 0:00:00]} 14. Ng5 {[%emt 0:00:30]} Bxg5 {[%emt 0:01:00]} 15. Bxg5 {[%emt 0:00:00]} Qe8 {[%emt 0:00:30]} 16. Bxd5 {[%emt 0:05:00]} exd5 {[%emt 0:00:30]} 17. Nf4 {[%emt 0:00:30]} c6 {[%emt 0:10:30]} 18. O-O-O {[%emt 0:04:30]} Be6 {[%emt 0:03:30]} 19. h4 {[%emt 0:07:30]} c5 {[%emt 0:03:30]} 20. h5 {[%emt 0:10:30]} cxd4 {[%emt 0:02:30]} 21. Rxd4 {[%emt 0:01:30]} Nc5 {[%emt 0:00:30]} 22. Qe3 {[%emt 0:02:30]} Rc7 {[%emt 0:06:16]} 23. Kb1 {[%emt 0:02:30]} h6 {[%emt 0:00:46]} 24. Bh4 {[%emt 0:00:30]} Rac8 {[%emt 0:01:22]} 25. Rc1 {[%emt 0:08:30]} Qb5 {[%emt 0:03:14]} 26. Rb4 {[%emt 0:01:30]} Qa6 {[%emt 0:01:01]} 27. f3 {[%emt 0:07:30]} Bf7 {[%emt 0:01:04]} 28. Rd1 {[%emt 0:07:30]} d4 {[%emt 0:03:04]} 29. Qxd4 {[%emt 0:04:30]} Ne6 {[%emt 0:02:18]} 30. Qd3 {[%emt 0:00:30]} Nxf4 {[%emt 0:00:44]} 31. Qxa6 {[%emt 0:00:00]} bxa6 {[%emt 0:00:01]} 32. Rxf4 {[%emt 0:00:00]} Bxh5 {[%emt 0:00:13]} 33. Bd8 {[%emt 0:02:30]} Rc2 {[%emt 0:01:16]} 34. e6 {[%emt 0:00:47]} Re2 {[%emt 0:00:26]} 35. e7 {[%emt 0:01:04]} g5 {[%emt 0:01:43]} 36. Rb4 {[%emt 0:01:18]} f4 {[%emt 0:01:18]} 37. Re4 {[%emt 0:08:01]} Rxe4 {[%emt 0:01:01]} 38. fxe4 {[%emt 0:00:02]} Kf7 {[%emt 0:00:23]} 39. Rd6 {[%emt 0:00:56]} f3 {[%emt 0:01:16]} 40. gxf3 {[%emt 0:00:14]} Kg7 {[%emt 0:01:01]} 41. Rf6 {[%emt 0:00:51]} Bf7 {[%emt 0:00:06]} 42. Re6 {[%emt 0:00:24]} Be8 {[%emt 0:00:05]} 43. Rxa6 {[%emt 0:01:17]} h5 {[%emt 0:00:36]} 44. Ra5 {[%emt 0:00:04]} Kg6 {[%emt 0:00:41]} 45. Rf5 {[%emt 0:00:16]} Bf7 {[%emt 0:00:36]} 46. Rxg5+ {[%emt 0:02:44]} Kh7 {[%emt 0:00:08]} 47. Re5 {[%emt 0:00:57]} Be8 {[%emt 0:00:06]} 48. Rf5 {[%emt 0:00:09]} h4 {[%emt 0:01:05]} 49. Rf8 {[%emt 0:00:03]} Bg6 {[%emt 0:00:41]} 50. e8=Q {[%emt 0:00:14]} Bxe8 {[%emt 0:00:02]} 51. Rxe8 {[%emt 0:00:02]} h3 {[%emt 0:00:10]} 52. Re7+ {[%emt 0:00:22]} Kg6 {[%emt 0:00:39]} 53. Bc7 {[%emt 0:00:05]} 1-0

[Event "16th Spilimbergo Open 2018"]
[Site "Spilimbergo"]
[Date "2018.08.11"]
[Round "3.16"]
[White "Rahul Srivatshav P"]
[Black "Di Benedetto, Desiree"]
[Result "1/2-1/2"]
[ECO "C00"]
[WhiteElo "2388"]
[BlackElo "2295"]
[Annotator "NA"]
[PlyCount "80"]
[EventDate "2018.08.10"]
[EventType "swiss"]
[EventCountry "ITA"]
[SourceTitle "playchess.com"]
[Source "ChessBase"]
[SourceQuality "1"]
[TimeControl "5400+30"]

1. Nf3 {[%emt 0:00:30]} d5 {[%emt 0:00:30]} 2. g3 {[%emt 0:00:00]} Nf6 {[%emt 0:01:30]} 3. Bg2 {[%emt 0:00:00]} e6 {[%emt 0:00:30]} 4. O-O {[%emt 0:00:30]} Be7 {[%emt 0:01:30]} 5. d3 {[%emt 0:00:30]} c5 {[%emt 0:00:00]} 6. Nbd2 {[%emt 0:00:30]} Nc6 {[%emt 0:00:00]} 7. e4 {[%emt 0:00:30]} Qc7 {[%emt 0:01:30]} 8. Re1 {[%emt 0:00:00]} b6 {[%emt 0:01:30]} 9. c3 {[%emt 0:01:00]} Bb7 {[%emt 0:07:30]} 10. exd5 {[%emt 0:06:30]} Nxd5 {[%emt 0:01:30]} 11. Nc4 {[%emt 0:05:30]} O-O {[%emt 0:01:30]} 12. a4 {[%emt 0:02:30]} Rad8 {[%emt 0:06:30]} 13. Qb3 {[%emt 0:01:30]} h6 {[%emt 0:05:30]} 14. a5 {[%emt 0:03:30]} Nxa5 {[%emt 0:08:30]} 15. Nxa5 {[%emt 0:05:30]} bxa5 {[%emt 0:00:30]} 16. Ne5 {[%emt 0:00:30]} Nb6 {[%emt 0:23:30]} 17. Bxb7 {[%emt 0:06:30]} Qxb7 {[%emt 0:00:30]} 18. Qb5 {[%emt 0:18:30]} Bd6 {[%emt 0:10:30]} 19. Nc4 {[%emt 0:03:30]} Bb8 {[%emt 0:09:15]} 20. Be3 {[%emt 0:03:30]} Qd5 {[%emt 0:03:17]} 21. Nxb6 {[%emt 0:04:30]} axb6 {[%emt 0:00:08]} 22. Qxb6 {[%emt 0:00:30]} Bd6 {[%emt 0:02:41]} 23. Qxa5 {[%emt 0:15:30]} Ra8 {[%emt 0:01:09]} 24. Qb5 {[%emt 0:00:00]} Rab8 {[%emt 0:01:36]} 25. Qa6 {[%emt 0:00:00]} Rfd8 {[%emt 0:02:52]} 26. c4 {[%emt 0:01:30]} Qf5 {[%emt 0:04:49]} 27. Rad1 {[%emt 0:00:45]} Rxb2 {[%emt 0:01:04]} 28. d4 {[%emt 0:00:15]} cxd4 {[%emt 0:01:16]} 29. Rxd4 {[%emt 0:01:55]} Be7 {[%emt 0:02:34]} 30. Qa1 {[%emt 0:05:22]} Rbb8 {[%emt 0:00:22]} 31. Rxd8+ {[%emt 0:01:42]} Rxd8 {[%emt 0:00:10]} 32. Qa7 {[%emt 0:00:11]} Bg5 {[%emt 0:00:53]} 33. Bb6 {[%emt 0:05:22]} Rd2 {[%emt 0:00:41]} 34. Qa8+ {[%emt 0:00:29]} Kh7 {[%emt 0:00:03]} 35. h4 {[%emt 0:01:50]} Bf6 {[%emt 0:00:34]} 36. Be3 {[%emt 0:00:13]} Rd8 {[%emt 0:00:43]} 37. Qa7 {[%emt 0:00:25]} Bxh4 {[%emt 0:00:48]} 38. gxh4 {[%emt 0:01:36]} Qg4+ {[%emt 0:00:05]} 39. Kh2 {[%emt 0:00:30]} Qxh4+ {[%emt 0:00:05]} 40. Kg2 {[%emt 0:00:11]} Qg4+ {[%emt 0:00:04]} 1/2-1/2

[Event "16th Spilimbergo Open 2018"]
[Site "Spilimbergo"]
[Date "2018.08.12"]
[Round "4.3"]
[White "Nisipeanu, Liviu-Dieter"]
[Black "Lodici, Lorenzo"]
[Result "1/2-1/2"]
[ECO "E40"]
[WhiteElo "2657"]
[BlackElo "2447"]
[Annotator "RC"]
[PlyCount "56"]
[EventDate "2018.08.10"]
[EventType "swiss"]
[EventCountry "ITA"]
[SourceTitle "playchess.com"]
[Source "ChessBase"]
[SourceQuality "1"]
[TimeControl "5400+30"]

1. c4 {[%emt 0:00:30]} e6 {[%emt 0:00:30]} 2. Nc3 {[%emt 0:00:00]} d5 {[%emt 0:00:00]} 3. d4 {[%emt 0:00:00]} Bb4 {[%emt 0:01:00]} 4. e3 {[%emt 0:01:30]} Nf6 {[%emt 0:00:30]} 5. cxd5 {[%emt 0:02:30]} exd5 {[%emt 0:02:30]} 6. Qa4+ {[%emt 0:00:30]} Nc6 {[%emt 0:00:30]} 7. Bd3 {[%emt 0:00:30]} O-O {[%emt 0:01:30]} 8. Nge2 {[%emt 0:00:00]} Bd6 {[%emt 0:16:30]} 9. a3 {[%emt 0:00:00]} a6 {[%emt 0:05:30]} 10. Qc2 {[%emt 0:01:30]} Ne7 {[%emt 0:06:30]} 11. O-O {[%emt 0:12:30]} b6 {[%emt 0:02:30]} 12. b4 {[%emt 0:01:30]} Bb7 {[%emt 0:03:30]} 13. Rb1 {[%emt 0:00:30]} Ng6 {[%emt 0:08:30]} 14. f3 {[%emt 0:09:30]} Qe7 {[%emt 0:04:30]} 15. Ng3 {[%emt 0:01:30]} Nh4 {[%emt 0:09:30]} 16. Qf2 {[%emt 0:08:30]} c5 {[%emt 0:03:30]} 17. bxc5 {[%emt 0:07:30]} bxc5 {[%emt 0:00:30]} 18. Nce2 {[%emt 0:01:30]} Bc8 {[%emt 0:09:30]} 19. h3 {[%emt 0:07:30]} h6 {[%emt 0:04:16]} 20. Nf4 {[%emt 0:04:30]} Re8 {[%emt 0:05:38]} 21. Bd2 {[%emt 0:02:30]} Bd7 {[%emt 0:01:17]} 22. e4 {[%emt 0:06:30]} cxd4 {[%emt 0:00:38]} 23. Rfe1 {[%emt 0:03:30]} Bxf4 {[%emt 0:03:06]} 24. Bxf4 {[%emt 0:00:30]} Qxa3 {[%emt 0:00:02]} 25. Qxd4 {[%emt 0:07:30]} Bxh3 {[%emt 0:01:45]} 26. Ra1 {[%emt 0:00:30]} Qf8 {[%emt 0:00:49]} 27. Bf1 {[%emt 0:00:30]} Be6 {[%emt 0:01:50]} 28. Be5 {[%emt 0:07:55]} Nd7 {[%emt 0:03:19]} 1/2-1/2

[Event "16th Spilimbergo Open 2018"]
[Site "Spilimbergo"]
[Date "2018.08.12"]
[Round "4.5"]
[White "Karthik Venkataraman"]
[Black "Skoberne, Jure"]
[Result "1-0"]
[ECO "D15"]
[WhiteElo "2502"]
[BlackElo "2575"]
[Annotator "ChessBase"]
[PlyCount "63"]
[EventDate "2018.08.10"]
[EventType "swiss"]
[EventCountry "ITA"]
[SourceTitle "playchess.com"]
[Source "ChessBase"]
[SourceQuality "1"]
[TimeControl "5400+30"]

1. d4 {[%emt 0:01:30]} d5 {[%emt 0:01:30]} 2. c4 {[%emt 0:00:30]} c6 {[%emt 0:00:30]} 3. Nf3 {[%emt 0:00:30]} Nf6 {[%emt 0:00:00]} 4. Nc3 {[%emt 0:00:00]} dxc4 {[%emt 0:00:00]} 5. e4 {[%emt 0:03:00]} b5 {[%emt 0:00:30]} 6. Be2 {[%emt 0:00:30]} b4 {[%emt 0:08:30]} 7. Na4 {[%emt 0:00:00]} Nxe4 {[%emt 0:00:30]} 8. Bxc4 {[%emt 0:00:00]} e6 {[%emt 0:02:30]} 9. O-O {[%emt 0:00:30]} Be7 {[%emt 0:01:30]} 10. Re1 {[%emt 0:00:00]} Nf6 {[%emt 0:00:30]} 11. Ne5 {[%emt 0:01:00]} O-O {[%emt 0:00:30]} 12. Bg5 {[%emt 0:00:30]} a5 {[%emt 0:04:30]} 13. Qb3 {[%emt 0:14:30]} Qxd4 {[%emt 0:17:30]} 14. Rad1 {[%emt 0:00:30]} Qa7 {[%emt 0:02:30]} 15. Qf3 {[%emt 0:12:30]} Nd5 {[%emt 0:08:30]} 16. Bxe7 {[%emt 0:01:30]} Nxe7 {[%emt 0:00:30]} 17. Qh5 {[%emt 0:10:30]} Nd5 {[%emt 0:11:30]} 18. Bd3 {[%emt 0:01:30]} g6 {[%emt 0:02:30]} 19. Qh6 {[%emt 0:03:30]} f6 {[%emt 0:03:30]} 20. Nc4 {[%emt 0:00:30]} Qg7 {[%emt 0:11:30]} 21. Qc1 {[%emt 0:00:30]} Ra7 {[%emt 0:03:17]} 22. Ncb6 {[%emt 0:10:30]} Qc7 {[%emt 0:03:03]} 23. Nxc8 {[%emt 0:00:30]} Qxc8 {[%emt 0:00:04]} 24. Qc5 {[%emt 0:00:30]} Rff7 {[%emt 0:01:03]} 25. Bc4 {[%emt 0:00:30]} Qd7 {[%emt 0:03:51]} 26. Nb6 {[%emt 0:01:30]} Qe7 {[%emt 0:08:02]} 27. Qd4 {[%emt 0:00:30]} Qe8 {[%emt 0:02:50]} 28. Bxd5 {[%emt 0:01:30]} cxd5 {[%emt 0:00:08]} 29. Nxd5 {[%emt 0:00:30]} Qd8 {[%emt 0:01:01]} 30. Rxe6 {[%emt 0:00:30]} Rad7 {[%emt 0:00:21]} 31. Rde1 {[%emt 0:01:30]} Kf8 {[%emt 0:00:58]} 32. Qe4 1-0

[Event "16th Spilimbergo Open 2018"]
[Site "Spilimbergo"]
[Date "2018.08.12"]
[Round "4.6"]
[White "Brunello, Sabino"]
[Black "Mesaros, Florian"]
[Result "1-0"]
[ECO "C54"]
[WhiteElo "2555"]
[BlackElo "2422"]
[Annotator "ChessBase"]
[PlyCount "97"]
[EventDate "2018.08.10"]
[EventType "swiss"]
[EventCountry "ITA"]
[SourceTitle "playchess.com"]
[Source "ChessBase"]
[SourceQuality "1"]
[TimeControl "5400+30"]

1. e4 {[%emt 0:02:30]} e5 {[%emt 0:00:30]} 2. Nf3 {[%emt 0:00:30]} Nc6 {[%emt 0:00:00]} 3. Bc4 {[%emt 0:00:00]} Bc5 {[%emt 0:00:00]} 4. O-O {[%emt 0:00:00]} Nf6 {[%emt 0:00:30]} 5. d3 {[%emt 0:00:30]} d6 {[%emt 0:00:00]} 6. c3 {[%emt 0:00:00]} a6 {[%emt 0:00:00]} 7. a4 {[%emt 0:01:00]} Ba7 {[%emt 0:00:30]} 8. h3 {[%emt 0:05:30]} O-O {[%emt 0:01:30]} 9. Re1 {[%emt 0:00:30]} Ne7 {[%emt 0:03:30]} 10. Nbd2 {[%emt 0:01:30]} Ng6 {[%emt 0:00:30]} 11. Nf1 {[%emt 0:02:30]} Re8 {[%emt 0:05:30]} 12. Ng3 {[%emt 0:02:30]} Be6 {[%emt 0:04:30]} 13. Bxe6 {[%emt 0:02:30]} Rxe6 {[%emt 0:01:30]} 14. d4 {[%emt 0:05:30]} d5 {[%emt 0:14:30]} 15. exd5 {[%emt 0:03:30]} Qxd5 {[%emt 0:04:30]} 16. dxe5 {[%emt 0:10:30]} Qxd1 {[%emt 0:01:30]} 17. Rxd1 {[%emt 0:00:00]} Nxe5 {[%emt 0:00:30]} 18. Nxe5 {[%emt 0:21:00]} Rxe5 {[%emt 0:00:30]} 19. Bf4 {[%emt 0:00:00]} Re7 {[%emt 0:00:30]} 20. Rd2 {[%emt 0:00:00]} c6 {[%emt 0:08:30]} 21. Bg5 {[%emt 0:18:30]} Re6 {[%emt 0:10:30]} 22. Bxf6 {[%emt 0:00:30]} Rxf6 {[%emt 0:00:00]} 23. Re1 {[%emt 0:00:30]} Kf8 {[%emt 0:08:00]} 24. Kf1 {[%emt 0:01:30]} b5 {[%emt 0:10:30]} 25. a5 {[%emt 0:07:17]} Re8 {[%emt 0:06:50]} 26. Rxe8+ {[%emt 0:00:25]} Kxe8 {[%emt 0:00:02]} 27. Ne4 {[%emt 0:00:09]} Re6 {[%emt 0:00:27]} 28. Nd6+ {[%emt 0:00:35]} Kf8 {[%emt 0:00:17]} 29. Nf5 {[%emt 0:00:36]} g6 {[%emt 0:03:21]} 30. Rd8+ {[%emt 0:05:52]} Re8 {[%emt 0:00:23]} 31. Rxe8+ {[%emt 0:03:31]} Kxe8 {[%emt 0:00:03]} 32. Nd6+ {[%emt 0:00:06]} Kf8 {[%emt 0:02:17]} 33. Ke2 {[%emt 0:00:01]} f5 {[%emt 0:04:58]} 34. b4 {[%emt 0:00:48]} h6 {[%emt 0:08:51]} 35. Ke1 {[%emt 0:00:55]} Bb8 {[%emt 0:01:14]} 36. Nb7 {[%emt 0:02:15]} Ke7 {[%emt 0:00:03]} 37. Nc5 {[%emt 0:01:20]} Ba7 {[%emt 0:00:04]} 38. Nxa6 {[%emt 0:01:06]} Kd7 {[%emt 0:01:20]} 39. Ke2 {[%emt 0:00:57]} Kc8 {[%emt 0:00:32]} 40. Nc5 {[%emt 0:00:28]} Bxc5 {[%emt 0:00:45]} 41. bxc5 {[%emt 0:00:00]} Kb7 {[%emt 0:00:01]} 42. Kd3 {[%emt 0:00:12]} Ka6 {[%emt 0:00:04]} 43. Kd4 {[%emt 0:00:15]} Kxa5 {[%emt 0:00:38]} 44. Ke5 {[%emt 0:00:01]} b4 {[%emt 0:00:00]} 45. cxb4+ {[%emt 0:00:11]} Kxb4 {[%emt 0:00:00]} 46. Kd6 {[%emt 0:00:07]} Kb5 {[%emt 0:00:00]} 47. f4 {[%emt 0:00:47]} g5 {[%emt 0:00:23]} 48. g3 {[%emt 0:00:06]} h5 {[%emt 0:01:46]} 49. fxg5 {[%emt 0:00:00]} 1-0

[Event "16th Spilimbergo Open 2018"]
[Site "Spilimbergo"]
[Date "2018.08.12"]
[Round "4.7"]
[White "Sonis, Francesco"]
[Black "Krysa, Leandro"]
[Result "1/2-1/2"]
[ECO "E08"]
[WhiteElo "2468"]
[BlackElo "2523"]
[Annotator "ChessBase"]
[PlyCount "66"]
[EventDate "2018.08.10"]
[EventType "swiss"]
[EventCountry "ITA"]
[SourceTitle "playchess.com"]
[Source "ChessBase"]
[SourceQuality "1"]
[TimeControl "5400+30"]

1. Nf3 {[%emt 0:00:30]} d5 {[%emt 0:00:30]} 2. d4 {[%emt 0:00:00]} Nf6 {[%emt 0:00:00]} 3. c4 {[%emt 0:00:00]} e6 {[%emt 0:04:00]} 4. g3 {[%emt 0:00:00]} Bb4+ {[%emt 0:00:00]} 5. Bd2 {[%emt 0:00:00]} Be7 {[%emt 0:00:00]} 6. Bg2 {[%emt 0:00:30]} O-O {[%emt 0:00:30]} 7. Qc2 {[%emt 0:00:30]} Nbd7 {[%emt 0:00:30]} 8. O-O {[%emt 0:01:30]} c6 {[%emt 0:01:30]} 9. Bf4 {[%emt 0:03:30]} b6 {[%emt 0:01:30]} 10. Rd1 {[%emt 0:04:30]} Ba6 {[%emt 0:01:30]} 11. Nbd2 {[%emt 0:00:30]} Nh5 {[%emt 0:00:30]} 12. Be3 {[%emt 0:02:30]} Rc8 {[%emt 0:28:30]} 13. Ne5 {[%emt 0:10:30]} Nhf6 {[%emt 0:02:30]} 14. Ndf3 {[%emt 0:12:30]} Ne4 {[%emt 0:02:30]} 15. cxd5 {[%emt 0:21:30]} cxd5 {[%emt 0:01:30]} 16. Qa4 {[%emt 0:00:00]} Nb8 {[%emt 0:00:30]} 17. Rdc1 {[%emt 0:01:00]} b5 {[%emt 0:11:30]} 18. Qd1 {[%emt 0:02:30]} b4 {[%emt 0:04:30]} 19. Nd3 {[%emt 0:01:30]} Qa5 {[%emt 0:03:30]} 20. Rxc8 {[%emt 0:01:30]} Rxc8 {[%emt 0:00:00]} 21. Rc1 {[%emt 0:00:30]} Qxa2 {[%emt 0:11:00]} 22. Nfe5 {[%emt 0:07:30]} Qa5 {[%emt 0:04:52]} 23. Bh3 {[%emt 0:08:30]} Qb5 {[%emt 0:07:48]} 24. Rxc8+ {[%emt 0:03:56]} Bxc8 {[%emt 0:00:05]} 25. Qc2 {[%emt 0:01:47]} Nd6 {[%emt 0:01:45]} 26. Bf4 {[%emt 0:01:16]} b3 {[%emt 0:02:35]} 27. Qc1 {[%emt 0:07:51]} Nc4 {[%emt 0:03:49]} 28. Nxc4 {[%emt 0:00:52]} dxc4 {[%emt 0:00:17]} 29. Bxb8 {[%emt 0:00:09]} Ba6 {[%emt 0:01:21]} 30. Bxa7 {[%emt 0:02:25]} cxd3 {[%emt 0:00:27]} 31. exd3 {[%emt 0:00:02]} Qxd3 {[%emt 0:01:02]} 32. Bc5 {[%emt 0:01:14]} Bg5 {[%emt 0:02:37]} 33. Qf1 {[%emt 0:01:08]} h5 {[%emt 0:02:15]} 1/2-1/2

[Event "16th Spilimbergo Open 2018"]
[Site "Spilimbergo"]
[Date "2018.08.12"]
[Round "4.8"]
[White "Rombaldoni, Denis"]
[Black "Solomon, Kenny"]
[Result "1/2-1/2"]
[ECO "D00"]
[WhiteElo "2508"]
[BlackElo "2395"]
[Annotator "ChessBase"]
[PlyCount "69"]
[EventDate "2018.08.10"]
[EventType "swiss"]
[EventCountry "ITA"]
[SourceTitle "playchess.com"]
[Source "ChessBase"]
[SourceQuality "1"]
[TimeControl "5400+30"]

1. d4 {[%emt 0:03:30]} Nf6 {[%emt 0:00:30]} 2. Nc3 {[%emt 0:00:30]} d5 {[%emt 0:00:30]} 3. Bf4 {[%emt 0:00:00]} e6 {[%emt 0:00:30]} 4. Nb5 {[%emt 0:00:00]} Na6 {[%emt 0:00:30]} 5. e3 {[%emt 0:00:00]} Be7 {[%emt 0:00:30]} 6. Nf3 {[%emt 0:00:00]} O-O {[%emt 0:02:30]} 7. Ne5 {[%emt 0:00:30]} Ne4 {[%emt 0:02:30]} 8. f3 {[%emt 0:02:30]} Nd6 {[%emt 0:01:30]} 9. Qd2 {[%emt 0:01:30]} c5 {[%emt 0:12:30]} 10. Nxd6 {[%emt 0:16:30]} Bxd6 {[%emt 0:00:30]} 11. Bxa6 {[%emt 0:00:30]} bxa6 {[%emt 0:01:30]} 12. O-O {[%emt 0:04:30]} cxd4 {[%emt 0:26:30]} 13. exd4 {[%emt 0:07:30]} Qb6 {[%emt 0:00:00]} 14. c3 {[%emt 0:01:30]} f6 {[%emt 0:05:00]} 15. Nd3 {[%emt 0:00:30]} e5 {[%emt 0:00:30]} 16. Be3 {[%emt 0:00:30]} Qc6 {[%emt 0:09:30]} 17. dxe5 {[%emt 0:07:30]} fxe5 {[%emt 0:00:30]} 18. f4 {[%emt 0:00:00]} d4 {[%emt 0:03:30]} 19. cxd4 {[%emt 0:01:00]} exd4 {[%emt 0:00:30]} 20. Bxd4 {[%emt 0:00:30]} Qd5 {[%emt 0:00:30]} 21. Bc3 {[%emt 0:17:30]} Bb7 {[%emt 0:03:30]} 22. Ne5 {[%emt 0:07:30]} Bc5+ {[%emt 0:00:30]} 23. Kh1 {[%emt 0:00:00]} Qxd2 {[%emt 0:00:30]} 24. Bxd2 {[%emt 0:00:00]} Rad8 {[%emt 0:00:30]} 25. Rad1 {[%emt 0:07:30]} Rd5 {[%emt 0:10:36]} 26. Bc1 {[%emt 0:01:30]} Bb6 {[%emt 0:02:05]} 27. Nc4 {[%emt 0:07:37]} Rc8 {[%emt 0:10:23]} 28. b3 {[%emt 0:00:36]} Rxd1 {[%emt 0:01:49]} 29. Rxd1 {[%emt 0:00:02]} Re8 {[%emt 0:00:02]} 30. Nd6 {[%emt 0:07:46]} Rd8 {[%emt 0:00:15]} 31. Bb2 {[%emt 0:00:24]} Bc5 {[%emt 0:00:35]} 32. Be5 {[%emt 0:00:08]} Bxd6 {[%emt 0:01:39]} 33. Rxd6 {[%emt 0:00:13]} Rxd6 {[%emt 0:00:29]} 34. Bxd6 {[%emt 0:00:01]} a5 {[%emt 0:00:04]} 35. Bc5 {[%emt 0:04:45]} 1/2-1/2

[Event "16th Spilimbergo Open 2018"]
[Site "Spilimbergo"]
[Date "2018.08.12"]
[Round "4.9"]
[White "Aghayev, Miragha"]
[Black "Korpa, Bence"]
[Result "1/2-1/2"]
[ECO "D41"]
[WhiteElo "2424"]
[BlackElo "2506"]
[Annotator "ChessBase"]
[PlyCount "86"]
[EventDate "2018.08.10"]
[EventType "swiss"]
[EventCountry "ITA"]
[SourceTitle "playchess.com"]
[Source "ChessBase"]
[SourceQuality "1"]
[TimeControl "5400+30"]

1. d4 {[%emt 0:00:30]} Nf6 {[%emt 0:06:30]} 2. c4 {[%emt 0:00:30]} e6 {[%emt 0:00:00]} 3. Nf3 {[%emt 0:01:30]} d5 {[%emt 0:00:00]} 4. Nc3 {[%emt 0:01:30]} c5 {[%emt 0:00:30]} 5. cxd5 {[%emt 0:01:30]} Nxd5 {[%emt 0:00:00]} 6. g3 {[%emt 0:00:30]} Nxc3 {[%emt 0:01:00]} 7. bxc3 {[%emt 0:00:30]} cxd4 {[%emt 0:00:30]} 8. cxd4 {[%emt 0:00:30]} Bb4+ {[%emt 0:00:00]} 9. Bd2 {[%emt 0:00:00]} Bxd2+ {[%emt 0:00:00]} 10. Qxd2 {[%emt 0:00:00]} b6 {[%emt 0:00:30]} 11. Bg2 {[%emt 0:00:30]} Bb7 {[%emt 0:00:00]} 12. O-O {[%emt 0:00:30]} O-O {[%emt 0:00:00]} 13. a4 {[%emt 0:14:30]} a5 {[%emt 0:05:30]} 14. Rfc1 {[%emt 0:11:30]} Nd7 {[%emt 0:03:30]} 15. Ne5 {[%emt 0:06:30]} Bxg2 {[%emt 0:01:30]} 16. Nxd7 {[%emt 0:00:00]} Qxd7 {[%emt 0:00:00]} 17. Kxg2 {[%emt 0:00:00]} Rfd8 {[%emt 0:21:00]} 18. Rd1 {[%emt 0:16:30]} Rac8 {[%emt 0:03:30]} 19. Qd3 {[%emt 0:06:30]} Rc6 {[%emt 0:15:30]} 20. Rab1 {[%emt 0:03:30]} Rd6 {[%emt 0:02:30]} 21. Qb3 {[%emt 0:20:09]} Qb7+ {[%emt 0:08:30]} 22. d5 {[%emt 0:00:28]} g6 {[%emt 0:13:58]} 23. e3 {[%emt 0:02:13]} h5 {[%emt 0:06:45]} 24. h4 {[%emt 0:00:57]} Qa8 {[%emt 0:01:22]} 25. Kg1 {[%emt 0:04:11]} Rxd5 {[%emt 0:01:30]} 26. Rxd5 {[%emt 0:00:11]} Qxd5 {[%emt 0:00:05]} 27. Qxb6 {[%emt 0:00:06]} Rc8 {[%emt 0:00:08]} 28. Qb5 {[%emt 0:00:35]} Qd2 {[%emt 0:04:01]} 29. Kg2 {[%emt 0:01:31]} Qc2 {[%emt 0:01:04]} 30. Kg1 {[%emt 0:01:43]} Kh7 {[%emt 0:00:44]} 31. Rf1 {[%emt 0:05:23]} Rc5 {[%emt 0:00:29]} 32. Qd7 {[%emt 0:00:16]} Rf5 {[%emt 0:03:52]} 33. Qd4 {[%emt 0:00:27]} Qc5 {[%emt 0:00:37]} 34. Rd1 {[%emt 0:00:25]} Qc2 {[%emt 0:00:37]} 35. Rf1 {[%emt 0:00:08]} e5 {[%emt 0:00:36]} 36. Qd1 {[%emt 0:00:11]} Qc4 {[%emt 0:00:26]} 37. Qa1 {[%emt 0:00:37]} Qc2 {[%emt 0:00:43]} 38. Qd1 {[%emt 0:00:06]} Qc4 {[%emt 0:00:13]} 39. Qa1 {[%emt 0:00:04]} e4 {[%emt 0:00:45]} 40. Rb1 {[%emt 0:01:09]} Qe2 {[%emt 0:00:37]} 41. Rb2 {[%emt 0:00:05]} Qf3 {[%emt 0:00:06]} 42. Rd2 {[%emt 0:00:43]} g5 {[%emt 0:00:59]} 43. Qd1 {[%emt 0:01:36]} Qxd1+ {[%emt 0:00:25]} 1/2-1/2